Cogmind - Beta 14 @@@ ROGUE MODE // 2024.10.26 @ 17:54:13 Player: KURIIRI Result: Self-destructed Performance ------------- Evolutions (1) 500 Regions Visited (3) 600 Robots Destroyed (84) 420 Value Destroyed (2091) 2091 Prototype IDs (4) 80 Alien Tech Used (0) 0 Bonus (36) 36 TOTAL SCORE: 3727 Bonus ------- High Alert Combat Kills 36 Cogmind --------- Core Integrity 198/400 Matter 207/300 Energy 160/160 System Corruption 3% Temperature Cool (0) Movement Treading (160) Location -9/Mines Parts ------- > --- POWER (1) -------- Light Nuclear Core > --- PROPULSION (2) --- Light Treads Light Treads > --- UTILITY (4) ------ Heat Sink Large Storage Unit Improved Light Armor Plating Hacking Suite > --- WEAPON (2) ------- Improved Light Cannon (fused) Shock Bomb Launcher > --- INVENTORY (15) --- Light Treads Improved Treads Improved Light Armor Plating Improved Light Armor Plating Authchip [Processor] Authchip [Weapon] Particle Cannon Particle Cannon Particle Cannon Improved Light Cannon Shock Bomb Launcher Datajack Plasma Cutter Maul Peak State ------------ > --- POWER ------------ Light Nuclear Core > --- PROPULSION ------- Light Treads Light Treads > --- UTILITY ---------- Large Storage Unit Improved Light Armor Plating Improved Light Armor Plating Hacking Suite > --- WEAPON ----------- Improved Light Cannon Shock Bomb Launcher > --- INVENTORY -------- Light Treads Improved Treads Heat Sink Improved Light Armor Plating Authchip [Processor] Authchip [Weapon] Particle Cannon Particle Cannon Particle Cannon Improved Light Cannon Shock Bomb Launcher Datajack Plasma Cutter Maul [Rating: 23] Favorites ----------- Power Light Ion Engine Engine Light Ion Engine Power Core Light Nuclear Core Propulsion Light Treads Treads Light Treads Utility Large Storage Unit Device Heat Sink Storage Large Storage Unit Processor Targeting Computer Hackware Hacking Suite Protection Improved Light Armor Plating Weapon Small Laser Energy Gun Small Laser Energy Cannon Particle Cannon Ballistic Gun Heavy Assault Rifle Ballistic Cannon Improved Light Cannon Launcher Shock Bomb Launcher Special Melee Weapon Datajack Build | -11 -10 -9 -9 ------- Run | Yrd Mat Mat Min Slots Evolved 2 | . . 2 . Power . | . . . . Propulsion . | . . . . Utility 2 | . . 2 . Weapon . | . . . . Parts Attached 41 | 6 10 20 5 Power 4 | 1 1 . 2 Engine 3 | 1 1 . 1 Core 1 | . . . 1 Reactor . | . . . . Propulsion 10 | 2 2 6 . Treads 10 | 2 2 6 . Leg . | . . . . Wheel . | . . . . Hover . | . . . . Flight . | . . . . Utility 11 | 1 2 6 2 Device 1 | . . . 1 Storage 2 | 1 1 . . Processor 2 | . 1 1 . Hackware 1 | . . 1 . Protection 5 | . . 4 1 Artifact . | . . . . Weapon 16 | 2 5 8 1 Energy Gun 8 | 1 5 2 . Energy Cannon 1 | . . 1 . Ballistic Gun 2 | 1 . 1 . Ballistic Cannon 3 | . . 3 . Launcher 1 | . . . 1 Special Weapon . | . . . . Impact Weapon . | . . . . Slashing Weapon . | . . . . Piercing Weapon . | . . . . Special Melee Weapon 1 | . . 1 . Unidentified Prototypes . | . . . . Parts Lost 7 | . 4 2 1 Power 1 | . . 1 . Propulsion 2 | . 2 . . Utility 1 | . . . 1 Weapon 3 | . 2 1 . Highest Loss Streak 2 | . 2 2 1 To Critical Strikes . | . . . . Average Slot Usage (%) 92 | . 98 90 88 Engine 6 | . 14 2 4 Treads 24 | . 27 22 22 Storage 12 | . 15 11 11 Processor 9 | . 11 11 . Hackware 7 | . . 11 11 Protection 7 | . . 11 11 Energy Gun 11 | . 25 5 . Energy Cannon 3 | . . 6 . Ballistic Gun 1 | . 2 2 . Ballistic Cannon 5 | . . 7 11 Launcher 1 | . . . 11 Peak Build Rating 23 | 6 9 17 23 Average Rating 12 | 4 7 15 19 On Entrance 7 | . 6 8 17 Naked Turns . | . . . . Heaviest Build 39 | 11 31 34 39 Greatest Support 40 | 40 40 40 40 Greatest Overweight (x) . | . . . . Average Overweight (x) . | . . . . Largest Inventory Capacity 15 | 8 15 15 15 Average Capacity 14 | 6 14 15 15 Most Carried 15 | . 13 15 15 Average Carried 11 | . 6 13 14 Final Capacity 15 | 8 15 15 15 Final Carried 15 | . 10 15 14 Class Distribution -------------------- 78% | Mutant 21% | Scavenger-Mutant Dominant Class ---------------- Mutant | -10/Materials Mutant | -9/Materials Scavenger-Mutant | -9/Mines Resources | -11 -10 -9 -9 ----------- Run | Yrd Mat Mat Min Matter Collected 1088 | 199 273 482 134 Remotely . | . . . . Salvage Created 2574 | . 775 1582 217 Parts 160 | . 44 102 14 Haulers Intercepted 4 | . 2 2 . Recyclers Shooed 3 | . 2 1 . Parts Field Recycled . | . . . . Retrieved Matter . | . . . . Parts Self-Destructed . | . . . . Prevented . | . . . . Kills | -11 -10 -9 -9 ------- Run | Yrd Mat Mat Min Combat Hostiles Destroyed 63 | . 17 38 8 Melee 1 | . 1 . . Guns 29 | . 15 14 . Cannons 23 | . . 19 4 AOE 9 | . . 5 4 Classes Destroyed 10 | . 5 5 . Worker 2 | . . 2 . Builder 1 | . . 1 . Tunneler 1 | . . 1 . Hauler 4 | . 2 2 . Recycler 3 | . . 3 . Operator 2 | . 1 1 . Watcher 8 | . 3 5 . Swarmer 21 | . 3 15 3 Grunt 34 | . 14 15 5 Sentry 8 | . . 8 . Best Kill Streak 10 | . 4 10 3 Combat Bots Only 6 | . 4 6 3 Max Kills in Single Turn 7 | . 2 7 1 Gunslinging 1 | . 1 1 . Exploded 3 | . . 3 1 Melee 1 | . 1 . . Uniques/NPCs Destroyed . | . . . . Combat | -11 -10 -9 -9 -------- Run | Yrd Mat Mat Min Hostile Shots Fired 289 | . 98 148 43 Missed 89 | . 22 51 16 Damage Taken 2385 | . 938 1107 340 Core 384 | . 182 157 45 Absorbed by Shields . | . . . . Core Remaining (%) 63 | 100 27 . . Volleys Fired 212 | . 86 94 32 Largest 2 | . 2 2 1 Hottest 107 | . 80 107 39 Shots Fired 366 | . 151 183 32 Gun 221 | . 151 70 . Cannon 138 | . . 113 25 Launcher 7 | . . . 7 Special . | . . . . Kinetic 132 | . 20 87 25 Thermal 204 | . 126 78 . Explosive . | . . . . Electromagnetic 30 | . 5 18 7 Robot Hit Streak 18 | . 13 18 3 Robot Miss Streak 3 | . 3 3 3 Penetration Max . | . . . . Secondary Targets 3 | . 1 2 . Max Gunslinging Chain 1 | . 1 1 . Shots Hit Robots 241 | . 103 123 15 Core Hits 127 | . 44 72 11 Critical Kills 1 | . . 1 . Critical Parts Destroyed 1 | . . 1 . Critical Strikes 9 | . . 7 2 Burn 3 | . . 3 . Destroy 2 | . . 2 . Blast 4 | . . 2 2 Melee Attacks . | . . . . Impact . | . . . . Slashing . | . . . . Piercing . | . . . . Sneak Attacks . | . . . . Combat Hostiles . | . . . . Follow-up Attacks . | . . . . Damage Inflicted 4641 | . 1208 2902 531 Guns 1957 | . 1126 831 . Cannons 1895 | . . 1609 286 Explosions 737 | . 76 443 218 Melee . | . . . . Ramming 52 | . 6 19 27 Kinetic 1496 | . 128 1082 286 Thermal 2378 | . 1004 1326 48 Explosive . | . . . . Electromagnetic 715 | . 70 475 170 Impact . | . . . . Slashing . | . . . . Piercing . | . . . . Highest Corruption 3 | . 1 3 3 Average Corruption 2 | . 1 2 3 Corruption Purged . | . . . . Corruption Blocked . | . . . . Effects 20 | . . 13 7 Message Errors 2 | . . 1 1 Matter Fused 5 | . . 3 2 Heat Flow Errors 2 | . . . 2 Energy Discharges 2 | . . 1 1 Parts Fused 1 | . . 1 . Data Loss (minor) 3 | . . 3 . Data Loss (major) 3 | . . 3 . Alerts 2 | . . 1 1 Overload Shots . | . . . . Overflow Damage 46 | . 23 23 . Projectiles 10 | . . 10 . Explosions 36 | . 23 13 . Melee . | . . . . Knockbacks 8 | . . 5 3 Impact 1 | . . . 1 Kinetic 7 | . . 5 2 Secondary . | . . . . Self-Inflicted Damage 50 | . 37 10 3 Shots 3 | . 1 1 1 Rammed 9 | . 2 4 3 Targets Rammed 10 | . 3 4 3 Kicked . | . . . . Crushed 1 | . 1 . . Highest Temperature 320 | . 320 189 186 Average Temperature 66 | . 84 50 79 Received Heat Transfer 1035 | . 486 393 156 Effects 7 | . 7 . . Energy Bleed 2 | . 2 . . Interference 3 | . 3 . . Matter Decay 2 | . 2 . . Siege Activations . | . . . . Robots Corrupted . | . . . . Combat Hostiles . | . . . . Parts Fried 3 | . . 2 1 Impact Corruptions . | . . . . Robots Melted 1 | . 1 . . Combat Hostiles 1 | . 1 . . Parts Melted 9 | . 5 4 . Heat Transferred 5057 | . 2225 2732 100 Parts Sabotaged . | . . . . Parts Stolen . | . . . . Parts Stripped . | . . . . Power Chain Reactions 7 | . 2 3 2 Alert | -11 -10 -9 -9 ------- Run | Yrd Mat Mat Min Peak Influence 460 | . 235 460 438 Initial 144 | . . 49 144 Average 188 | . 76 241 320 Maximum Alert Level 2 | . 1 2 2 Low Security (%) 59 | 100 94 46 3 Level 1 29 | . 5 37 73 Level 2 10 | . . 15 23 Level 3 . | . . . . Level 4 . | . . . . Level 5 . | . . . . High Security . | . . . . Max Security . | . . . . Squads Dispatched 11 | . 6 5 . Investigation 9 | . 5 4 . Extermination . | . . . . Reinforcement 2 | . 1 1 . Assault . | . . . . Garrison . | . . . . Intercept . | . . . . Searches Triggered . | . . . . Construction Impeded . | . . . . Haulers Reinforced . | . . . . Active Scanning Responses . | . . . . Cargo Convoy Interrupts . | . . . . Stealth | -11 -10 -9 -9 --------- Run | Yrd Mat Mat Min Distress Signals 6 | . 4 2 . Communications Jammed . | . . . . Distress Signals . | . . . . Times Spotted 85 | . 28 49 8 Peak Tracking Total 5 | . 3 5 3 Tactical Retreats 1 | . 1 . . Traps | -11 -10 -9 -9 ------- Run | Yrd Mat Mat Min Traps Triggered 4 | . 2 2 . Indirectly . | . . . . Trap Hack Attempts 25 | . . 25 . Triggered . | . . . . Disarmed . | . . . . Reprogrammed 10 | . 6 4 . Reused . | . . . . Traps Extracted . | . . . . Installed . | . . . . Triggered . | . . . . Machines | -11 -10 -9 -9 ---------- Run | Yrd Mat Mat Min Machines Disabled 10 | . . 3 7 Max in Single Turn 4 | . . 2 4 Machines Repaired . | . . . . Machines Dismantled . | . . . . Machines Sabotaged . | . . . . Overloaded Fab Kills . | . . . . Hacking | -11 -10 -9 -9 --------- Run | Yrd Mat Mat Min Machines Accessed 19 | . 8 11 . Terminals 15 | . 6 9 . Fabricators . | . . . . Repair Stations . | . . . . Recycling Units 3 | . 2 1 . Scanalyzers 1 | . . 1 . Garrison Access . | . . . . Total Hacks 60 | . 26 34 . Successful 33 | . 14 19 . Failed 25 | . 11 14 . Catastrophic 6 | . 3 3 . Database Lockouts 2 | . 1 1 . Manual 41 | . 20 21 . Terminals 54 | . 23 31 . Fabricators . | . . . . Repair Stations . | . . . . Recycling Units 4 | . 3 1 . Scanalyzers 2 | . . 2 . Garrison Access . | . . . . Terminal Hacks 19 | . 7 12 . Robot Analysis 7 | . 2 5 . Prototype ID Bank 2 | . 2 . . Branch Access Points 1 | . . 1 . Emergency Access Points 1 | . . 1 . Unreport Threat 4 | . 1 3 . Locate Traps 3 | . 1 2 . Reprogram Traps 1 | . 1 . . Fabricator Hacks . | . . . . Repair Station Hacks . | . . . . Recycling Unit Hacks . | . . . . Scanalyzer 2 | . . 2 . Insert Component 1 | . . 1 . Analyze 1 | . . 1 . Garrison Access Hacks . | . . . . Unauthorized Hacks 12 | . 7 5 . Terminals 8 | . 4 4 . Botnet 6 | . 3 3 . Operators 2 | . 1 1 . Fabricators . | . . . . Repair Stations . | . . . . Recycling Units 4 | . 3 1 . Reject 1 | . 1 . . Mask 1 | . 1 . . Tunnel 2 | . 1 1 . Scanalyzers . | . . . . Garrison Access . | . . . . Data Cores Recovered . | . . . . Used . | . . . . Hacking Detections 13 | . 6 7 . Full Trace Events 8 | . 5 3 . Feedback Events . | . . . . Feedback Blocked . | . . . . Robot Schematics Acquired . | . . . . Robots Built . | . . . . Authchips . | . . . . Time . | . . . . Total Robot Build Rating . | . . . . Part Schematics Acquired 1 | . . 1 . Parts Built . | . . . . Authchips . | . . . . Time . | . . . . Total Part Build Rating . | . . . . Parts Repaired . | . . . . Time . | . . . . Parts Recycled . | . . . . Recycled Matter . | . . . . Retrieved Matter . | . . . . Retrieved Components . | . . . . Parts Scanalyzed 1 | . . 1 . Part Schematics Acquired 1 | . . 1 . Parts Damaged . | . . . . Bothacking | -11 -10 -9 -9 ------------ Run | Yrd Mat Mat Min Used RIF Installer . | . . . . Robots Hacked . | . . . . Non-combat . | . . . . Combat . | . . . . Robot Hacks Applied . | . . . . Relay Couplers Released . | . . . . Fabnet Peak Effective % . | . . . . Robots Rewired . | . . . . Allies Hacked . | . . . . Hacks Repelled . | . . . . Allies | -11 -10 -9 -9 -------- Run | Yrd Mat Mat Min Total Allies 3 | . . . 3 Largest Group 3 | . . . 3 Highest-Rated Group 40 | . . . 40 Highest-Rated Ally 16 | . . . 16 Total Orders . | . . . . Ally Attacks . | . . . . Total Damage . | . . . . Kills . | . . . . Allies Corrupted . | . . . . Allies Melted . | . . . . Intel | -11 -10 -9 -9 ------- Run | Yrd Mat Mat Min Robot Analysis Total 7 | . 2 5 . Derelict Logs Recovered . | . . . . Drone Launches . | . . . . Drone Recoveries . | . . . . Exploration | -11 -10 -9 -9 ------------- Run | Yrd Mat Mat Min Turns Passed 3425 | 85 1154 1811 375 Spaces Moved 1584 | 49 509 841 185 Core 1 | 1 . . . Treads 1583 | 48 509 841 185 Legs . | . . . . Wheels . | . . . . Hover . | . . . . Flight . | . . . . Fastest Speed 50 | 50 160 160 160 Average Speed 159 | 157 160 160 160 Slowest Speed 160 | 160 160 160 160 Overloaded Moves . | . . . . Propulsion Burnouts . | . . . . Robots Hopped . | . . . . Cave-ins Triggered . | . . . . Exploration Rate (%) 57 | 3 86 84 55 Regions Visited 3 Branch Regions 1 Pre-discovered Areas 2 | . 1 1 . Known Exits Taken 1 | . . 1 . Unknown Exits Taken 2 | 1 1 . . Scrap Searched . | . . . . Spaces Dug . | . . . . Terrain Destroyed 26 | . 4 13 9 Melee . | . . . . Projectile 5 | . . 4 1 AOE 21 | . 4 9 8 Terrain Rammed . | . . . . Walls Destroyed . | . . . . Machines Disabled . | . . . . Actions | -11 -10 -9 -9 --------- Run | Yrd Mat Mat Min Total 2110 | 54 698 1128 230 Wait 184 | . 74 107 3 Move 1582 | 48 509 840 185 Hop . | . . . . Pick Up 30 | . 13 17 . Fast Attach 14 | 6 3 4 1 Attach 8 | . 3 3 2 Detach 1 | . . . 1 Swap 19 | . 4 13 2 Drop 26 | . 4 21 1 Fire 212 | . 86 94 32 Melee . | . . . . Ram . | . . . . Kick . | . . . . Crush 9 | . 2 4 3 Escape Stasis . | . . . . Rewire . | . . . . Trap 25 | . . 25 . Miscellaneous . | . . . . Route ------- -11/Scrapyard -10/Materials (discovered 4 exits: *Mat x3 / [*Min]) -9/Materials (discovered 4 exits: [*Mat x3] / *Min) -9/Mines (discovered 2 exits: [*Mat] / [*Zio]) History --------- Turn | Location | Event 11 | -11/Scrapyard | Discovered new exit (range 15) 86 | -11/Scrapyard | Entered Materials 283 | -10/Materials | Discovered new exit (range 14) 323 | -10/Materials | Build established: Mutant 530 | -10/Materials | Discovered new exit (range 15) 776 | -10/Materials | Core integrity fell below 50% 851 | -10/Materials | Central database locked down 975 | -10/Materials | Discovered new exit (range 16) 1211 | -10/Materials | Discovered new exit (range 16) 1240 | -10/Materials | Entered another Materials area 1240 | -9/Materials | Evolved 2 slots: Utility x2 1583 | -9/Materials | Discovered new exit (range 13) 1947 | -9/Materials | Build established: Scavenger-Mutant 2146 | -9/Materials | Discovered new exit (range 10) 2298 | -9/Materials | Build established: Mutant 2603 | -9/Materials | Discovered new exit (range 8) 2644 | -9/Materials | Central database locked down 2865 | -9/Materials | Discovered new exit (range 16) 2919 | -9/Materials | Identified exit to Mines 3051 | -9/Materials | Entered Mines 3092 | -9/Mines | Discovered new exit (range 11) 3161 | -9/Mines | A Derelict revealed a hidden shortcut to a safe place 3366 | -9/Mines | Core integrity fell below 50% 3385 | -9/Mines | Build established: Scavenger-Mutant 3412 | -9/Mines | Assisted by bots powering up and referring to "LRC-V3" 3426 | -9/Mines | Self-destructed Last Messages --------------- 03372_ G-47 Trooper destroyed. 03373_ U-05 Engineer lays Concrete. 03375_ K-01 Serf collects debris. 03376_ U-05 Engineer lays Concrete. 03377_ System corrupted: Heat flow error (+140). 03377_ U-05 Engineer lays Concrete. 03381_ U-05 Engineer builds a Wall. 03384_ Acquired 9 matter. 03385_ U-05 Engineer lays Concrete. 03385_ Acquired 39 matter. 03386_ U-05 Engineer lays Concrete. 03388_ K-01 Serf collects debris. 03394_ U-05 Engineer builds a Wall. 03403_ System corrupted: Energy discharge (-55). 03412_ Trooper 2a: "Hello LRC-V3. What is your command?" 03412_ Mercenary 2a: "Hello LRC-V3. What is your command?" 03412_ Trooper 2b: "Hello LRC-V3. What is your command?" Map ----- +----------------------------------------------------+ | | | | | | | | | | | | | | | | | ????????????????????????????????? | | ????????????????????????????????? | | ????????????????????????????????? | | ????????????????????????????????? | | ????????????????????????????????? | | ????????????????????????????????? | | ????????????????????????????????? | | ????????????????????????????????? | | ????????????????????????????????? | | ????????????????????????????????? | | ????????????????????????????????? | | ????????????????????????????????? | | ?????????????????????########???? | | ?????????????????????? ##??? | | ??????????????????????? ##?? | | ???????????????????????# #?? | | ??????????????????????## #?? | | ??????????????????????# @ #?? | | ?????????????????????## #??? | | ????????????????????##gg ####??? | | ????????????????##### ###?????? | | ????????????????# g ##???????? | | ????????????????# ##????????? | | ????????????????# ##????????? | | ?????#####????##### #????????? | | ????## ##???# #????????? | | ???## ##??# #????????? | | ???# ##?# ## #????????? | | ???# #?# ### ##????????? | | ????# #?# #?####?????????? | | ???## #??# #??????????????? | | ??## ##?# #??????????????? | | ??# ### #??????????????? | | ### ## ##?????????????? | | ## ### [ ##?????????????? | | ##?#### = %%##????????????? | | #?????##%=[* #????????????? | | #??????### #????????? | | ##?????#### #??????? | | ###???????# #?????? | | #???????# ???? | | ## #??????### ???? | +----------------------------------------------------+ Best States ------------- Heat Dissipation 38 Energy Generation 14 Energy Capacity 160 Matter Stores 300 Matter Capacity 300 Sight Range 16 Terrain Scan Density 10 Armor Coverage 150 Evasion (%) 40 Targeting Accuracy 5 Recoil Reduction 2 Offensive Hacking 10 Authchip Count 2 Item Schematics ----------------- Plasma Cutter | -9/Materials | Scanalyzed Robot Schematics ------------------ None Fabricated ------------ Nothing Alien Tech Used ----------------- None Achievements -------------- None Challenges ------------ None Game ------ Seed ArmoredSurgeRipper Manual? 0 Play Time 00:28:13 Cumulative 144.2 hours Start 2024.10.26 @ 17:28:21 End 2024.10.26 @ 17:54:13 Sessions 1 Manual Loads 0 Difficulty Rogue Special Mode None Game No. 91 Rogue 55 Adventurer 36 Explorer 0 Win Type - Total 3 Types 2/0/0/1/0/0/0/0/0 Lore% 55 Gallery% 63 Achievement% 55 Wizard Run 0 Options --------- Layout 1 ASCII 0 Keyboard 0 Movement Numpad Keybinds 0 Fullscreen 1 Font 48/Smallcaps Map View 50x35 Zoom Use 0% Tactical HUD 1 Map Filters NONE Filters NONE Steam 1 RUN: 41854980-0cb3-405d-bef1-216f8ea796c2